Cogmind - Beta 10.1 @@@ ROGUE MODE // 2020.09.30 @ 14:02:36 // Winter2019/RPGLIKE Player: Hermelin Result: Destroyed by 8R-AWN with 8R-AWN's Boregun Performance ------------- Evolutions (0) 0 Regions Visited (3) 600 Robots Destroyed (48) 240 Value Destroyed (1012) 1012 Prototype IDs (28) 560 Alien Tech Used (0) 0 Bonus (-26) -26 TOTAL SCORE: 2386 Bonus ------- Follower Combat Kills 60 Aligned with FarCom 300 Friendly Fire -386 Cogmind --------- Core Integrity 0/700 Matter 299/300 Energy 2150/2150 System Corruption 0% Temperature Cool (58) Movement Treading (160) Location -10/Exiles Parts ------- > --- POWER (1) -------- Light Angular Momentum Engine > --- PROPULSION (2) --- Light Treads Light Treads > --- UTILITY (4) ------ Superbattery Structural Scanner Improved Terrain Scanner > --- WEAPON (3) ------- EM Pulse Gun Autogun Autogun > --- INVENTORY (4) ---- Beamcaster YOLO Cannon Rocket Launcher Peak State ------------ > --- POWER ------------ Light Angular Momentum Engine > --- PROPULSION ------- Light Treads Light Treads > --- UTILITY ---------- Superbattery Structural Scanner Improved Terrain Scanner Light Armor Plating > --- WEAPON ----------- EM Pulse Gun Autogun Rocket Launcher > --- INVENTORY -------- Beamcaster YOLO Cannon Autogun [Rating: 28] Favorites ----------- Power Light Angular Momentum Engine Engine Light Angular Momentum Engine Propulsion Light Treads Treads Light Treads Utility Improved Terrain Scanner Device Improved Terrain Scanner Storage High-capacity Battery Processor Seismic Analyzer Protection Light Armor Plating Weapon EM Pulse Gun Energy Gun EM Pulse Gun Ballistic Gun Autogun Launcher Rocket Launcher Special Weapon Mining Laser Build | -11 -10 -10 -10 ------- Run | Scr Mat Min Exi Slots Evolved 6 | 3 2 1 . Power . | . . . . Propulsion 1 | 1 . . . Utility 3 | 1 1 1 . Weapon 2 | 1 1 . . Parts Attached 30 | 7 15 6 2 Power 4 | 1 2 1 . Engine 4 | 1 2 1 . Core . | . . . . Reactor . | . . . . Propulsion 2 | 2 . . . Treads 2 | 2 . . . Leg . | . . . . Wheel . | . . . . Hover . | . . . . Flight . | . . . . Utility 9 | 2 3 3 1 Device 5 | 1 2 2 . Storage 2 | . 1 . 1 Processor 1 | 1 . . . Hackware . | . . . . Protection 1 | . . 1 . Artifact . | . . . . Weapon 15 | 2 10 2 1 Energy Gun 6 | 2 4 . . Energy Cannon . | . . . . Ballistic Gun 5 | . 3 1 1 Ballistic Cannon . | . . . . Launcher 2 | . 1 1 . Special Weapon 2 | . 2 . . Impact Weapon . | . . . . Slashing Weapon . | . . . . Piercing Weapon . | . . . . Special Melee Weapon . | . . . . Unidentified Prototypes . | . . . . Parts Lost 1 | . . . 1 Power . | . . . . Propulsion . | . . . . Utility 1 | . . . 1 Weapon . | . . . . Highest Loss Streak 1 | . . . 1 Average Slot Usage (%) 99 | . 99 99 99 Engine 11 | . 13 10 10 Treads 22 | . 26 20 20 Device 23 | . 24 24 20 Storage 6 | . 2 10 10 Protection 3 | . . 5 9 Energy Gun 15 | . 21 10 10 Ballistic Gun 9 | . 7 10 10 Launcher 5 | . . 9 9 Naked Turns . | . . . . Heaviest Build 27 | 7 22 27 27 Greatest Support 45 | 45 45 45 45 Greatest Overweight (x) . | . . . . Average Overweight (x) . | . . . . Largest Inventory Capacity 4 | 2 3 4 4 Average Capacity 3 | 1 2 3 4 Most Carried 4 | . 3 4 4 Average Carried 2 | . 1 3 3 Final Capacity 4 | 2 3 4 4 Final Carried 4 | . 3 4 4 Class Distribution -------------------- 60% | Mutant 34% | Skirmisher 5% | Scavenger-Skirmisher Dominant Class ---------------- Mutant | -10/Materials Skirmisher | -10/Mines Mutant | -10/Exiles Resources | -11 -10 -10 -10 ----------- Run | Scr Mat Min Exi Matter Collected 860 | 270 210 176 204 Remotely . | . . . . Salvage Created 1548 | 129 1109 281 29 Parts 93 | 10 69 14 . Haulers Intercepted 1 | . 1 . . Recyclers Shooed . | . . . . Parts Field Recycled . | . . . . Retrieved Matter . | . . . . Parts Self-Destructed . | . . . . Prevented . | . . . . Kills | -11 -10 -10 -10 ------- Run | Scr Mat Min Exi Combat Hostiles Destroyed 32 | . 25 5 2 Guns 25 | . 22 2 1 AOE 7 | . 3 3 1 Classes Destroyed 10 | 2 6 1 1 Worker 2 | . 1 1 . Builder 1 | . . 1 . Tunneler 3 | 2 . 1 . Hauler 1 | . 1 . . Recycler 3 | 1 . 2 . Operator 1 | . 1 . . Watcher 3 | . 3 . . Swarmer 9 | . 6 3 . Grunt 21 | . 19 2 . Assembled 4 | . . . 4 Best Kill Streak 5 | 3 5 5 2 Combat Bots Only 5 | . 5 3 2 Max Kills in Single Turn 4 | 1 2 4 2 Gunslinging . | . . . . Exploded 2 | . 2 2 1 Melee . | . . . . Uniques/NPCs Destroyed 1 | . . . 1 EX-HEX (-10/Exiles) Combat | -11 -10 -10 -10 -------- Run | Scr Mat Min Exi Damage Taken 1611 | . 901 219 491 Core 1236 | . 715 173 348 Absorbed by Shields . | . . . . Redirected to Core 1093 | . 612 146 335 Core Remaining (%) 100 | 100 . . . Volleys Fired 137 | 9 85 22 21 Largest 3 | 2 3 2 3 Hottest 100 | 90 100 63 86 Shots Fired 274 | 18 170 38 48 Gun 263 | 18 164 36 45 Cannon . | . . . . Launcher 7 | . 2 2 3 Special 4 | . 4 . . Kinetic 70 | . 14 20 36 Thermal 136 | 18 118 . . Explosive 7 | . 2 2 3 Electromagnetic 61 | . 36 16 9 Robot Hit Streak 14 | 2 14 9 11 Robot Miss Streak 5 | 4 3 5 2 Penetration Max . | . . . . Secondary Targets 4 | . 4 . . Max Gunslinging Chain 1 | . 1 . . Shots Hit Robots 175 | 7 109 24 35 Core Hits 87 | 4 51 14 18 Critical Hits . | . . . . Critical Kills . | . . . . Critical Parts Destroyed . | . . . . Melee Attacks . | . . . . Impact . | . . . . Slashing . | . . . . Piercing . | . . . . Sneak Attacks . | . . . . Combat Hostiles . | . . . . Follow-up Attacks . | . . . . Damage Inflicted 3084 | 104 1604 671 705 Guns 2196 | 104 1349 334 409 Cannons . | . . . . Explosions 888 | . 255 337 296 Melee . | . . . . Ramming . | . . . . Kinetic 637 | . 76 177 384 Thermal 1131 | 104 995 32 . Explosive 749 | . 148 305 296 Electromagnetic 567 | . 385 157 25 Impact . | . . . . Slashing . | . . . . Piercing . | . . . . Highest Corruption . | . . . . Average Corruption . | . . . . Corruption Purged . | . . . . Overload Shots . | . . . . Overflow Damage 55 | . . 38 17 Projectiles . | . . . . Explosions 55 | . . 38 17 Melee . | . . . . Knockbacks . | . . . . Impact . | . . . . Kinetic . | . . . . Secondary . | . . . . Self-Inflicted Damage 144 | . 69 75 . Shots 4 | . 2 2 . Rammed . | . . . . Targets Rammed . | . . . . Kicked . | . . . . Crushed . | . . . . Highest Temperature 204 | 60 204 31 159 Average Temperature 58 | 22 66 10 87 Received Heat Transfer 477 | . 405 72 . Siege Activations . | . . . . Robots Corrupted . | . . . . Combat Hostiles . | . . . . Parts Fried . | . . . . Impact Corruptions . | . . . . Robots Melted . | . . . . Combat Hostiles . | . . . . Parts Melted 1 | . 1 . . Heat Transferred 2947 | 285 2612 50 . Parts Sabotaged . | . . . . Parts Stolen . | . . . . Parts Stripped . | . . . . Power Chain Reactions 3 | . 3 . . Missiles Intercepted . | . . . . Alert | -11 -10 -10 -10 ------- Run | Scr Mat Min Exi Peak Influence 272 | 15 272 263 . Initial 78 | . 9 78 . Average 137 | 5 153 120 . Maximum Alert Level 1 | . 1 1 . Low Security (%) 77 | 100 80 68 . Level 1 22 | . 19 31 . Level 2 . | . . . . Level 3 . | . . . . Level 4 . | . . . . Level 5 . | . . . . High Security . | . . . . Max Security . | . . . . Squads Dispatched 6 | . 6 . . Investigation 6 | . 6 . . Extermination . | . . . . Reinforcement . | . . . . Assault . | . . . . Garrison . | . . . . Intercept . | . . . . Construction Impeded . | . . . . Haulers Reinforced . | . . . . Stealth | -11 -10 -10 -10 --------- Run | Scr Mat Min Exi Distress Signals 3 | . 3 . . Communications Jammed . | . . . . Distress Signals . | . . . . Times Spotted 48 | . 33 9 6 Peak Tracking Total 7 | . 4 2 7 Tactical Retreats 2 | . . 2 . Traps | -11 -10 -10 -10 ------- Run | Scr Mat Min Exi Traps Triggered . | . . . . Indirectly . | . . . . Trap Hack Attempts . | . . . . Triggered . | . . . . Disarmed . | . . . . Reprogrammed . | . . . . Reused 1 | . . . 1 Traps Extracted . | . . . . Installed 1 | . . . 1 Triggered . | . . . . Machines | -11 -10 -10 -10 ---------- Run | Scr Mat Min Exi Machines Disabled 11 | . 1 6 4 Max in Single Turn 5 | . 1 5 2 Machines Sabotaged . | . . . . Garrisons Compromised . | . . . . Overloaded Fab Kills . | . . . . Fab Network Shutdowns . | . . . . Hacking | -11 -10 -10 -10 --------- Run | Scr Mat Min Exi Machines Accessed 12 | . 10 . 2 Terminals 8 | . 8 . . Fabricators . | . . . . Repair Stations . | . . . . Recycling Units 2 | . 2 . . Scanalyzers . | . . . . Garrison Access . | . . . . Total Hacks 55 | . 53 . 2 Successful 28 | . 26 . 2 Failed 26 | . 26 . . Catastrophic 2 | . 2 . . Database Lockouts 1 | . 1 . . Manual 37 | . 36 . 1 Terminals 46 | . 46 . . Fabricators . | . . . . Repair Stations . | . . . . Recycling Units 7 | . 7 . . Scanalyzers . | . . . . Garrison Access . | . . . . Terminal Hacks 15 | . 13 . 2 Record 1 | . . . 1 Robot Analysis 2 | . 2 . . Prototype ID Bank 3 | . 3 . . Emergency Access Points 1 | . 1 . . Terminal Index 1 | . 1 . . Locate Traps 2 | . 2 . . Hauler Manifests 1 | . 1 . . Registered Components 1 | . 1 . . Zone Layout 2 | . 2 . . EX-Prototype ID Bank 1 | . . . 1 Fabricator Hacks . | . . . . Repair Station Hacks . | . . . . Recycling Unit Hacks 3 | . 3 . . Report Inventory 2 | . 2 . . Retrieve Components 1 | . 1 . . Scanalyzer . | . . . . Garrison Access Hacks . | . . . . Unauthorized Hacks 10 | . 10 . . Terminals 7 | . 7 . . Track 4 | . 4 . . Botnet 3 | . 3 . . Fabricators . | . . . . Repair Stations . | . . . . Recycling Units 3 | . 3 . . Mask 1 | . 1 . . Tunnel 2 | . 2 . . Scanalyzers . | . . . . Garrison Access . | . . . . Data Cores Recovered . | . . . . Used . | . . . . Hacking Detections 9 | . 9 . . Full Trace Events 8 | . 8 . . Feedback Events . | . . . . Feedback Blocked . | . . . . Robot Schematics Acquired . | . . . . Robots Built . | . . . . Matter . | . . . . Time . | . . . . Total Robot Build Rating . | . . . . Part Schematics Acquired . | . . . . Parts Built . | . . . . Matter . | . . . . Time . | . . . . Total Part Build Rating . | . . . . Parts Repaired . | . . . . Time . | . . . . Parts Recycled . | . . . . Recycled Matter . | . . . . Retrieved Matter . | . . . . Retrieved Components 10 | . 10 . . Parts Scanalyzed . | . . . . Part Schematics Acquired . | . . . . Parts Damaged . | . . . . Bothacking | -11 -10 -10 -10 ------------ Run | Scr Mat Min Exi Used RIF Installer . | . . . . Robots Hacked . | . . . . Non-combat . | . . . . Combat . | . . . . Robot Hacks Applied . | . . . . Relay Couplers Released . | . . . . Robots Rewired . | . . . . Allies Hacked . | . . . . Hacks Repelled . | . . . . Allies | -11 -10 -10 -10 -------- Run | Scr Mat Min Exi Total Allies 3 | . . 3 . Largest Group 3 | . . 3 3 Highest-Rated Group 40 | . . 40 40 Highest-Rated Ally 16 | . . 16 16 Total Orders 3 | . . . 3 STAY 3 | . . . 3 Ally Attacks 39 | . . 19 20 Total Damage 368 | . . 225 143 Kills 5 | . . 2 3 Allies Corrupted . | . . . . Allies Melted . | . . . . Intel | -11 -10 -10 -10 ------- Run | Scr Mat Min Exi Robot Analysis Total 2 | . 2 . . Derelict Logs Recovered 2 | . . 2 . Drone Launches . | . . . . Drone Recoveries . | . . . . Exploration | -11 -10 -10 -10 ------------- Run | Scr Mat Min Exi Turns Passed 4738 | 115 2199 1196 1228 Spaces Moved 2386 | 48 1072 627 639 Core 6 | 6 . . . Treads 2380 | 42 1072 627 639 Legs . | . . . . Wheels . | . . . . Hover . | . . . . Flight . | . . . . Fastest Speed 50 | 50 160 160 160 Average Speed 159 | 146 160 160 160 Slowest Speed 160 | 160 160 160 160 Overloaded Moves . | . . . . Propulsion Burnouts . | . . . . Robots Hopped . | . . . . Cave-ins Triggered . | . . . . Exploration Rate (%) 64 | 4 96 97 62 Regions Visited 3 Branch Regions 2 Pre-discovered Areas 4 | . 2 1 1 Known Exits Taken . | . . . . Unknown Exits Taken 3 | 1 1 1 . Scrap Searched 1 | . . 1 . Spaces Dug 1 | . 1 . . Terrain Destroyed 71 | . 29 23 19 Melee . | . . . . Projectile 1 | . 1 . . AOE 70 | . 28 23 19 Terrain Rammed . | . . . . Walls Destroyed . | . . . . Machines Disabled . | . . . . Actions | -11 -10 -10 -10 --------- Run | Scr Mat Min Exi Total 3063 | 71 1390 786 816 Wait 437 | 8 177 117 135 Move 2383 | 47 1071 626 639 Hop . | . . . . Pick Up 19 | . 7 4 8 Fast Attach 15 | 7 6 2 . Attach 1 | . . 1 . Detach . | . . . . Swap 14 | . 9 3 2 Drop 27 | . 12 5 10 Fire 137 | 9 85 22 21 Melee . | . . . . Ram . | . . . . Kick . | . . . . Crush . | . . . . Escape Stasis . | . . . . Rewire . | . . . . Trap 1 | . . . 1 Miscellaneous 29 | . 23 6 . Route ------- -11/Scrapyard -10/Materials (discovered 4 exits: [*Mat x3] / [*Min]) -10/Mines (discovered 3 exits: [*Mat x2] / *Exi) -10/Exiles (discovered 1 exit: [*Min]) History --------- Turn | Location | Event 2 | -11/Scrapyard | Upgraded with Propulsion slot (x1) 2 | -11/Scrapyard | Upgraded with Utility slot (x1) 2 | -11/Scrapyard | Upgraded with Weapon slot (x1) 2 | -11/Scrapyard | Discovered new exit (range 16) 116 | -11/Scrapyard | Entered Materials 321 | -10/Materials | Build established: Mutant 445 | -10/Materials | Discovered new exit (range 17) 521 | -10/Materials | Discovered new exit (range 13) 949 | -10/Materials | Central database locked down 970 | -10/Materials | Reached level 2 978 | -10/Materials | Core integrity fell below 50% 1561 | -10/Materials | Discovered new exit (range 14) 1573 | -10/Materials | Upgraded with Weapon slot (x1) 1765 | -10/Materials | Reached level 3 1781 | -10/Materials | Upgraded with Utility slot (x1) 1870 | -10/Materials | Build established: Skirmisher 1953 | -10/Materials | Discovered new exit (range 15) 2315 | -10/Materials | Entered Mines 2330 | -10/Mines | Discovered new exit (range 12) 2334 | -10/Mines | Met a Derelict bent on vengeance 2339 | -10/Mines | Reached level 4 2343 | -10/Mines | Upgraded with Utility slot (x1) 2417 | -10/Mines | Learned Materials emergency access door positions 2752 | -10/Mines | Learned location of Zion (-6) 2778 | -10/Mines | Discovered new exit (range 8) 2789 | -10/Mines | Deemed a non-threat by the Exiles lab entrance 2857 | -10/Mines | Discovered new exit (range 13) 2862 | -10/Mines | Assisted by bots powering up and referring to "LRC-V3" 3089 | -10/Mines | Found a hidden stash of uninstalled traps 3167 | -10/Mines | A weapon hastily lodged in a ceiling crevice suddenly fell to the ground 3511 | -10/Mines | Entered Exiles 3511 | -10/Exiles | Accompanied by 3 allies 3532 | -10/Exiles | Discovered new exit (range 16) 3593 | -10/Exiles | Met 8R-AWN 3617 | -10/Exiles | Met EX-HEX 3673 | -10/Exiles | Met EX-DEC 3719 | -10/Exiles | Build established: Mutant 3803 | -10/Exiles | Met EX-BIN 3958 | -10/Exiles | Aligned with FarCom system 3960 | -10/Exiles | Given EX-Vault access code 3997 | -10/Exiles | Opened EX-Vault 4045 | -10/Exiles | Warned to stay clear of 0b10 Research branches 4491 | -10/Exiles | Found Superbattery 4571 | -10/Exiles | Found YOLO Cannon 4677 | -10/Exiles | Attacked by the Exiles 4691 | -10/Exiles | Allies destroyed EX-HEX 4725 | -10/Exiles | Core integrity fell below 20% 4739 | -10/Exiles | Destroyed by 8R-AWN with 8R-AWN's Boregun Last Messages --------------- 04719_ Extracted 8 matter. 04720_ Penetrated by HV Slug. 04720_ HV Slug penetrates Wall. 04721_ Extracted 8 matter. 04722_ HV Slug penetrates Machine. 04724_ Extracted 8 matter. 04724_ Penetrated by HV Slug. 04726_ Extracted 8 matter. 04726_ Penetrated by HV Slug. 04729_ Extracted 8 matter. 04729_ Penetrated by HV Slug. 04729_ Lgt. Armor Plating destroyed. 04731_ Penetrated by HV Slug. 04732_ Extracted 8 matter. 04732_ as-34130 destroyed. 04734_ Extracted 8 matter. 04735_ Penetrated by HV Slug. 04737_ Extracted 8 matter. 04739_ Extracted 7 matter. 04739_ Penetrated by HV Slug. Map ----- +----------------------------------------------------+ | """####???????????????????????????????? | | """###???##???????????????????????????? | | """## "?"?#???????????????????????????? | | """## "?"?????????????????????????????? | | """## "????#??????????????????????????? | | """""" ??#?#??????????????????????????? | | """###?#??????????????????????????????? | | "X" """"" ?##???????????????????????????? | | """ # """##?#??????????????????????????? | | """""""""# """###???#?#?????????????????????? | | ########### """#?#?#??????#??????????????????? | | ########?#???##?#??##?????#?#??#??#???##?????# | | ###############?###########?#????????#???????# | | ###############?##?####??#####???????#?#???#?# | | #########;#############?###?######?#?#?#?#??? | | #####"""" """"######?########??#?#?#??###?#? | | " "" """"#############???#?????#####?? | | " #######?########?###?###??## | | " """###########?######?####??##? | | a"###########?######?##??##### | | " "#############" ####??#????# | | "########?##" ####??####?? | | "" ""#########" #######???## | | #""" !% ######## ######?#??# | | #####""" g % ;## # ######### | | ######""" !! @##### #""""## | | ######"""" !%! %!;##^ | | ######"" !!! g ## | | #####"""" #### | | ##""" #?#"""""#### | | """ ##?#######??#### | | ##########?######?#### | | ######?#######?###??### | | ##########??######?#?##? | | "" ###########?##????#??### | | ##""" " " # "#######?#####?##??#?#??#? | | ######""" "" #######?####?###??####??# | | ####?###""""# ##############??#?#??#???# | | ############# ###?#######?####??#??###?#### | | " ######################?###?###??######??#??## | | ##??##?############??###????????#?####?##?#?# | | "########?#####??#?###?##?##?????????#??##?### | | !""!"#####?###?##??###?##?##???#?#?????????#???#?# | | ######?#####?######?#??#??#??????????????????????? | | ##?#?#####?#?####???##??#????????????????????????? | | ##??#?#####??#??#??????#?????????????????????????? | | #????#########???#???????????????????????????????? | | ?#?##?####?##?#?##???????????????????????????????? | | ?#######?????????#???????????????????????????????? | | #?#?##?#??##?????????????????????????????????????? | +----------------------------------------------------+ Best States ------------- Heat Dissipation 45 Energy Generation 18 Energy Capacity 2150 Matter Stores 300 Matter Capacity 300 Sight Range 17 Terrain Scan Range 16 Terrain Scan Density 160 Armor Coverage 150 Evasion (%) 40 Recoil Reduction 2 Offensive Hacking 5 Defensive Hacking 5 Item Schematics ----------------- None Robot Schematics ------------------ None Fabricated ------------ Nothing Alien Tech Used ----------------- None Achievements -------------- None Challenges ------------ None RPGLIKE | -11 -10 -10 -10 --------- Run | Scr Mat Min Exi Levels Raised 3 | . 2 1 . XP Earned 8844 | 3000 3600 1894 350 XP Spent 7460 | 2950 2350 2100 60 Upgrades 18 | 11 3 2 2 Propulsion Slot 1 | 1 . . . Utility Slot 3 | 1 1 1 . Weapon Slot 2 | 1 1 . . Core Integrity 2 | . . . 2 Heat Dissipation 1 | 1 . . . Mass Support 1 | 1 . . . Inventory Capacity 4 | 2 1 1 . Sight Range 1 | 1 . . . Terrain Scan Density 1 | 1 . . . Hack Attack % 1 | 1 . . . Hack Defense % 1 | 1 . . . Protomatter Created 215 | . 165 45 5 Integrity Restored 605 | . 470 135 . Core 535 | . 400 135 . Parts 70 | . 70 . . Protomatter Decayed . | . . . . Game ------ Seed LightpackArmageddonKatana Manual? 0 Play Time 00:36:14 Cumulative 297.1 hours Start 2020.09.30 @ 13:21:25 End 2020.09.30 @ 14:02:36 Sessions 1 Manual Loads 0 Difficulty Rogue Special Mode Winter2019/RPGLIKE Game No. 118 Rogue 118 Adventurer 0 Explorer 0 Win Type - Total 4 Types 3/0/0/1/0/0/0/0/0 Lore% 84 Gallery% 90 Achievement% 71 Wizard Run 0 Options --------- ASCII 0 Keyboard 0 Movement Numpad Keybinds 0 Fullscreen 1 Font 18/SmallcapsGlow Map View 76x50 Tactical HUD 1 Map Filters NONE Filters NONE Steam 1 RUN: a26d9e7b-643a-4dde-8a85-b6fc8ca1eac6